Cogmind - Beta 14 @@@ ROGUE MODE // 2024.11.30 @ 14:51:06 Player: lavinia Result: Destroyed by G-47 Trooper with Particle Gun Performance ------------- Evolutions (0) 0 Regions Visited (2) 400 Robots Destroyed (29) 145 Value Destroyed (422) 422 Prototype IDs (2) 40 Alien Tech Used (0) 0 Bonus (0) 0 TOTAL SCORE: 1007 Bonus ------- None Cogmind --------- Core Integrity 0/250 Matter 296/300 Energy 125/125 System Corruption 3% Temperature Cool (21) Movement Rolling (110) Ox2 Location -10/Mines Parts ------- > --- POWER (1) -------- Light Ion Engine (fused) > --- PROPULSION (2) --- Wheel Wheel > --- UTILITY (2) ------ High-capacity Storage Unit Structural Scanner > --- WEAPON (2) ------- Light Assault Rifle Light Assault Rifle > --- INVENTORY (20) --- Small Storage Unit Large Storage Unit Weight Redist. System Experimental Sensor Array Signal Interpreter Improved Terrain Scanner Terrain Scan Processor ECM Suite Particle Gun Beam Cannon Light Cannon Grenade Launcher Rocket Launcher Maul Makeshift Axe Peak State ------------ > --- POWER ------------ Light Ion Engine > --- PROPULSION ------- Compact Wheel Compact Wheel > --- UTILITY ---------- High-capacity Storage Unit Improved Terrain Scanner > --- WEAPON ----------- Light Assault Rifle Light Cannon > --- INVENTORY -------- Wheel Wheel Small Storage Unit Large Storage Unit Weight Redist. System Signal Interpreter Improved Terrain Scanner Terrain Scan Processor ECM Suite Particle Gun Beam Cannon Light Assault Rifle Grenade Launcher Maul [Rating: 11] Favorites ----------- Power Light Ion Engine Engine Light Ion Engine Propulsion Compact Wheel Leg Aluminum Leg Wheel Compact Wheel Utility Improved Terrain Scanner Device Improved Terrain Scanner Storage High-capacity Storage Unit Weapon Light Assault Rifle Energy Gun Small Laser Energy Cannon Beam Cannon Ballistic Gun Light Assault Rifle Ballistic Cannon Light Cannon Build | -11 -10 -10 ------- Run | Yrd Mat Min Slots Evolved . | . . . Power . | . . . Propulsion . | . . . Utility . | . . . Weapon . | . . . Parts Attached 28 | 12 11 5 Power 2 | 1 1 . Engine 2 | 1 1 . Core . | . . . Reactor . | . . . Propulsion 10 | 6 2 2 Treads . | . . . Leg 2 | 2 . . Wheel 8 | 4 2 2 Hover . | . . . Flight . | . . . Utility 7 | 2 4 1 Device 4 | 1 2 1 Storage 3 | 1 2 . Processor . | . . . Hackware . | . . . Protection . | . . . Artifact . | . . . Weapon 9 | 3 4 2 Energy Gun 2 | 1 1 . Energy Cannon 1 | . 1 . Ballistic Gun 5 | 2 1 2 Ballistic Cannon 1 | . 1 . Launcher . | . . . Special Weapon . | . . . Impact Weapon . | . . . Slashing Weapon . | . . . Piercing Weapon . | . . . Special Melee Weapon . | . . . Unidentified Prototypes . | . . . Parts Lost 8 | . 5 3 Power 1 | . 1 . Propulsion 4 | . 2 2 Utility 1 | . . 1 Weapon 2 | . 2 . Highest Loss Streak 2 | . 2 2 To Critical Strikes . | . . . Average Slot Usage (%) 96 | . 98 90 Engine 13 | . 12 14 Wheel 25 | . 27 19 Device 13 | . 14 13 Storage 14 | . 14 14 Ballistic Gun 23 | . 21 27 Ballistic Cannon 4 | . 6 . Peak Build Rating 11 | 9 11 11 Average Rating 9 | 7 9 9 On Entrance 6 | . 9 11 Naked Turns . | . . . Heaviest Build 48 | 11 48 48 Greatest Support 32 | 26 32 32 Greatest Overweight (x) 3 | 3 1 2 Average Overweight (x) . | . . 1 Largest Inventory Capacity 20 | 8 20 20 Average Capacity 16 | 7 16 20 Most Carried 16 | 5 15 16 Average Carried 10 | 3 9 14 Final Capacity 20 | 8 20 20 Final Carried 15 | 4 15 15 Class Distribution -------------------- 75% | Mutant 24% | Scavenger-Mutant Dominant Class ---------------- Mutant | -10/Materials Mutant | -10/Mines Resources | -11 -10 -10 ----------- Run | Yrd Mat Min Matter Collected 677 | 374 226 77 Remotely . | . . . Salvage Created 682 | 228 350 104 Parts 64 | 24 27 13 Haulers Intercepted . | . . . Recyclers Shooed 1 | 1 . . Parts Field Recycled . | . . . Retrieved Matter . | . . . Parts Self-Destructed . | . . . Prevented . | . . . Kills | -11 -10 -10 ------- Run | Yrd Mat Min Combat Hostiles Destroyed 18 | . 12 6 Guns 14 | . 8 6 Cannons 4 | . 4 . Classes Destroyed 6 | 3 3 . Worker 4 | 2 2 . Tunneler 5 | 5 . . Recycler 1 | 1 . . Watcher 1 | . 1 . Swarmer 11 | . 6 5 Grunt 7 | . 6 1 Best Kill Streak 5 | 3 5 3 Combat Bots Only 5 | . 5 3 Max Kills in Single Turn 2 | 1 2 2 Gunslinging 1 | . 1 1 Exploded . | . . . Melee . | . . . Uniques/NPCs Destroyed . | . . . Combat | -11 -10 -10 -------- Run | Yrd Mat Min Hostile Shots Fired 107 | . 83 24 Missed 26 | . 17 9 Damage Taken 902 | . 754 148 Core 259 | . 218 41 Absorbed by Shields . | . . . Core Remaining (%) 100 | 100 . . Volleys Fired 88 | 30 47 11 Largest 2 | 2 2 2 Hottest 55 | 40 55 55 Shots Fired 172 | 60 89 23 Gun 157 | 60 75 22 Cannon 15 | . 14 1 Launcher . | . . . Special . | . . . Kinetic 172 | 60 89 23 Thermal . | . . . Explosive . | . . . Electromagnetic . | . . . Robot Hit Streak 11 | 5 11 5 Robot Miss Streak 6 | 6 3 2 Penetration Max . | . . . Secondary Targets 3 | . 1 2 Max Gunslinging Chain 1 | . 1 1 Shots Hit Robots 95 | 29 51 15 Core Hits 47 | 16 23 8 Critical Kills . | . . . Critical Parts Destroyed 2 | . 1 1 Critical Strikes 2 | . 1 1 Destroy 2 | . 1 1 Melee Attacks . | . . . Impact . | . . . Slashing . | . . . Piercing . | . . . Sneak Attacks . | . . . Combat Hostiles . | . . . Follow-up Attacks . | . . . Damage Inflicted 879 | 233 529 117 Guns 736 | 233 386 117 Cannons 143 | . 143 . Explosions . | . . . Melee . | . . . Ramming . | . . . Kinetic 879 | 233 529 117 Thermal . | . . . Explosive . | . . . Electromagnetic . | . . . Impact . | . . . Slashing . | . . . Piercing . | . . . Highest Corruption 3 | . 3 3 Average Corruption 1 | . 1 3 Corruption Purged . | . . . Corruption Blocked . | . . . Effects 11 | . 4 7 Message Errors 2 | . . 2 Matter Fused 2 | . 1 1 Heat Flow Errors 2 | . 2 . Parts Fused 1 | . . 1 Data Loss (minor) 1 | . . 1 Data Loss (major) 1 | . 1 . Misfires 1 | . . 1 Alerts 1 | . . 1 Overload Shots . | . . . Overflow Damage . | . . . Projectiles . | . . . Explosions . | . . . Melee . | . . . Knockbacks 1 | . 1 . Impact . | . . . Kinetic 1 | . 1 . Secondary . | . . . Self-Inflicted Damage . | . . . Shots . | . . . Rammed . | . . . Targets Rammed . | . . . Kicked . | . . . Crushed . | . . . Highest Temperature 274 | . 274 34 Average Temperature 48 | . 50 15 Received Heat Transfer 381 | . 351 30 Siege Activations . | . . . Robots Corrupted . | . . . Combat Hostiles . | . . . Parts Fried . | . . . Impact Corruptions . | . . . Robots Melted . | . . . Combat Hostiles . | . . . Parts Melted . | . . . Heat Transferred . | . . . Parts Sabotaged . | . . . Parts Stolen . | . . . Parts Stripped . | . . . Power Chain Reactions . | . . . Alert | -11 -10 -10 ------- Run | Yrd Mat Min Peak Influence 252 | 40 252 135 Initial 26 | . 26 13 Average 86 | 19 94 98 Maximum Alert Level 1 | . 1 . Low Security (%) 97 | 100 96 100 Level 1 2 | . 3 . Level 2 . | . . . Level 3 . | . . . Level 4 . | . . . Level 5 . | . . . High Security . | . . . Max Security . | . . . Squads Dispatched 1 | . 1 . Investigation . | . . . Extermination . | . . . Reinforcement 1 | . 1 . Assault . | . . . Garrison . | . . . Intercept . | . . . Searches Triggered . | . . . Construction Impeded . | . . . Haulers Reinforced . | . . . Active Scanning Responses . | . . . Cargo Convoy Interrupts . | . . . Stealth | -11 -10 -10 --------- Run | Yrd Mat Min Distress Signals 1 | . 1 . Communications Jammed . | . . . Distress Signals . | . . . Times Spotted 28 | . 20 8 Peak Tracking Total 5 | . 5 3 Tactical Retreats 3 | . 2 1 Traps | -11 -10 -10 ------- Run | Yrd Mat Min Traps Triggered 2 | . 2 . Indirectly . | . . . Trap Hack Attempts . | . . . Triggered . | . . . Disarmed . | . . . Reprogrammed . | . . . Reused . | . . . Traps Extracted . | . . . Installed . | . . . Triggered . | . . . Machines | -11 -10 -10 ---------- Run | Yrd Mat Min Machines Disabled . | . . . Max in Single Turn . | . . . Machines Repaired . | . . . Machines Dismantled . | . . . Machines Sabotaged . | . . . Overloaded Fab Kills . | . . . Hacking | -11 -10 -10 --------- Run | Yrd Mat Min Machines Accessed 8 | . 7 1 Terminals 8 | . 7 1 Fabricators . | . . . Repair Stations . | . . . Recycling Units . | . . . Scanalyzers . | . . . Garrison Access . | . . . Total Hacks 26 | . 24 2 Successful 15 | . 13 2 Failed 11 | . 11 . Catastrophic 2 | . 2 . Database Lockouts . | . . . Manual . | . . . Terminals 26 | . 24 2 Fabricators . | . . . Repair Stations . | . . . Recycling Units . | . . . Scanalyzers . | . . . Garrison Access . | . . . Terminal Hacks 15 | . 13 2 Prototype ID Bank 1 | . 1 . Branch Access Points 1 | . 1 . Emergency Access Points 1 | . 1 . Alert Level 1 | . 1 . Locate Traps 2 | . 2 . Dispatch Records 2 | . 2 . Patrol Status 1 | . . 1 Transport Status 1 | . 1 . Assault Status 1 | . 1 . Hauler Manifests 1 | . 1 . Zone Layout 3 | . 2 1 Fabricator Hacks . | . . . Repair Station Hacks . | . . . Recycling Unit Hacks . | . . . Scanalyzer . | . . . Garrison Access Hacks . | . . . Unauthorized Hacks . | . . . Terminals . | . . . Fabricators . | . . . Repair Stations . | . . . Recycling Units . | . . . Scanalyzers . | . . . Garrison Access . | . . . Data Cores Recovered . | . . . Used . | . . . Hacking Detections 7 | . 7 . Full Trace Events 2 | . 2 . Feedback Events . | . . . Feedback Blocked . | . . . Robot Schematics Acquired . | . . . Robots Built . | . . . Authchips . | . . . Time . | . . . Total Robot Build Rating . | . . . Part Schematics Acquired . | . . . Parts Built . | . . . Authchips . | . . . Time . | . . . Total Part Build Rating . | . . . Parts Repaired . | . . . Time . | . . . Parts Recycled . | . . . Recycled Matter . | . . . Retrieved Matter . | . . . Retrieved Components . | . . . Parts Scanalyzed . | . . . Part Schematics Acquired . | . . . Parts Damaged . | . . . Bothacking | -11 -10 -10 ------------ Run | Yrd Mat Min Used RIF Installer . | . . . Robots Hacked . | . . . Non-combat . | . . . Combat . | . . . Robot Hacks Applied . | . . . Relay Couplers Released . | . . . Fabnet Peak Effective % . | . . . Robots Rewired . | . . . Allies Hacked . | . . . Hacks Repelled . | . . . Allies | -11 -10 -10 -------- Run | Yrd Mat Min Total Allies . | . . . Largest Group . | . . . Highest-Rated Group . | . . . Highest-Rated Ally . | . . . Total Orders . | . . . Ally Attacks . | . . . Total Damage . | . . . Kills . | . . . Allies Corrupted . | . . . Allies Melted . | . . . Intel | -11 -10 -10 ------- Run | Yrd Mat Min Robot Analysis Total . | . . . Derelict Logs Recovered 2 | . . 2 Drone Launches . | . . . Drone Recoveries . | . . . Exploration | -11 -10 -10 ------------- Run | Yrd Mat Min Turns Passed 1867 | 221 1200 446 Spaces Moved 1283 | 134 828 321 Core 16 | 16 . . Treads . | . . . Legs 17 | 17 . . Wheels 1250 | 101 828 321 Hover . | . . . Flight . | . . . Fastest Speed 50 | 50 80 110 Average Speed 105 | 85 103 120 Slowest Speed 200 | 200 115 130 Overloaded Moves . | . . . Propulsion Burnouts . | . . . Robots Hopped . | . . . Cave-ins Triggered . | . . . Exploration Rate (%) 55 | 6 91 68 Regions Visited 2 Branch Regions 1 Pre-discovered Areas 1 | . . 1 Known Exits Taken 1 | . 1 . Unknown Exits Taken 1 | 1 . . Scrap Searched 1 | . . 1 Spaces Dug . | . . . Terrain Destroyed . | . . . Melee . | . . . Projectile . | . . . AOE . | . . . Terrain Rammed . | . . . Walls Destroyed . | . . . Machines Disabled . | . . . Actions | -11 -10 -10 --------- Run | Yrd Mat Min Total 1651 | 191 1096 364 Wait 211 | . 189 22 Move 1281 | 133 827 321 Hop . | . . . Pick Up 36 | 13 19 4 Fast Attach 1 | 1 . . Attach 17 | 8 5 4 Detach . | . . . Swap 10 | 3 6 1 Drop 7 | 3 3 1 Fire 88 | 30 47 11 Melee . | . . . Ram . | . . . Kick . | . . . Crush . | . . . Escape Stasis . | . . . Rewire . | . . . Trap . | . . . Miscellaneous . | . . . Route ------- -11/Scrapyard -10/Materials (discovered 3 exits: [*Mat x2] / *Min) -10/Mines (discovered 2 exits: [*Mat] / [Sub]) History --------- Turn | Location | Event 22 | -11/Scrapyard | Discovered new exit (range 16) 222 | -11/Scrapyard | Entered Materials 305 | -10/Materials | Build established: Mutant 536 | -10/Materials | Identified exit to Mines 536 | -10/Materials | Discovered new exit (range 18) 867 | -10/Materials | Core integrity fell below 50% 889 | -10/Materials | Core integrity fell below 20% 906 | -10/Materials | Discovered new exit (range 11) 1269 | -10/Materials | Build established: Scavenger-Mutant 1422 | -10/Materials | Entered Mines 1594 | -10/Mines | Found a damaged Exp. Sensor Array with a note attached 1596 | -10/Mines | Found Prototype Device 1605 | -10/Mines | Learned Materials terminal intel 1691 | -10/Mines | Discovered new exit (range 16) 1702 | -10/Mines | Discovered new exit (range 6) 1728 | -10/Mines | Build established: Mutant 1760 | -10/Mines | Received a Rocket Launcher from a helpful Derelict 1819 | -10/Mines | A weapon hastily lodged in a ceiling crevice suddenly fell to the ground 1868 | -10/Mines | Destroyed by G-47 Trooper with Particle Gun Last Messages --------------- Need a big hole in the wall? Done." 7B-WMI(g): "Need a small hole in the wall? Leave that to the mining laser wimps, I say!" 7B-WMI(g): "Would you like a rocket launcher? I know I would if I were you, so I'm going to lend you mine." 7B-WMI(g) slips back into the shadows. Acquired Rocket Launcher. System corrupted: IFF burst signal emitted. A Mak. Axe has been hastily shoved under some rubble with a note attached: "Chop chop!" Acquired Mak. Axe. Searching scrap... Found Hover Unit. Found 64 Matter. Acquired 22 matter. System corrupted: Component data lost. G-34 Mercenary suffers critical hit (Destroy). Destroyed Aluminum Leg. G-34 Mercenary destroyed. Map ----- +----------------------------------------------------+ | | | | | | | | | | | | | | | | | | | | | | | | | ??????????????????????????????????? | | ??????????????????????????????????? | | ??????????????????????????????????? | | ??????????????????????????????????? | | ?#????????????????????????????????? | | ??????????????????????????????????? | | ??????????????????????????????????? | | ?????????????#????????#####???????? | | ??#???????????????????#####???????? | | ???#?????????########### ???????? | | ???#?????????########### ##???????? | | ????#????????## ## ###??????? | | ?????????????## ## ###??????? | | ???#?????????## """ g= @######??? | | ????????#????## """ ### ######??? | | ?????????????## """ ### ##??? | | ?????????#???## ?##### ##??? | | #######??????#########?##### ##??? | | #?#????#########????## ##??? | | ##### #?????#########?????## ##??? | | ??#?# #?????### #####????## ##??? | | ????# ######## ###???## ##??? | | ??#?# ####?## ##??? | | ???## ###### ##??? | | ????####### ## #### ###?? | | ???????#### #??? ## ### ####? | | ?#?#?#?# ### #### ## ###? | | ###??#?# ############ ##? | | # #???# #?## ##? | | #### #?## ##? | | ### #### ##### # ##? | | ###### # ## ##? | | #??###### %### ###? | | # #####???##### =########? | | ### #?????####### ######?? | | ??## ##?#??######## ##????? | | ??## ####?#### ## ##????? | | ### ##### ###????? | +----------------------------------------------------+ Best States ------------- Heat Dissipation 25 Energy Generation 10 Energy Capacity 125 Matter Stores 300 Matter Capacity 300 Sight Range 16 Terrain Scan Range 16 Terrain Scan Density 10 ECM Strength 1 Evasion (%) 55 Item Schematics ----------------- None Robot Schematics ------------------ None Fabricated ------------ Nothing Alien Tech Used ----------------- None Achievements -------------- None Challenges ------------ None Game ------ Seed ChainSpikedTreads Manual? 0 Play Time 00:32:17 Cumulative 4.2 hours Start 2024.11.30 @ 13:34:34 End 2024.11.30 @ 14:51:06 Sessions 1 Manual Loads 0 Difficulty Rogue Special Mode None Game No. 6 Rogue 6 Adventurer 0 Explorer 0 Win Type - Total 0 Types 0/0/0/0/0/0/0/0/0 Lore% 6 Gallery% 5 Achievement% 7 Wizard Run 0 Options --------- Layout 1 ASCII 0 Keyboard 0 Movement Mouse Keybinds 0 Fullscreen 2 Font 24/Smallcaps Map View 50x35 Zoom Use 0% Tactical HUD 0 Map Filters NONE Filters NONE Steam 1 RUN: abc19997-d751-4642-a845-d899849fed5e